[Event "Late-Titled-Tuesday-Blitz-March-12-2024"]
[Site "Chess.com"]
[Date "2024.03.12"]
[Round "3"]
[White "JacksterThePro"]
[Black "Jarming"]
[Result "1/2-1/2"]
[WhiteElo "2471"]
[BlackElo "2650"]
[TimeControl "180+1"]
[EndTime "14:26:52 PDT"]
[Termination "Game drawn by repetition"]

1. Nf3 {[%clk 0:03:00.4]} 1... g6 {[%clk 0:02:59.1]} 2. c4 {[%clk 0:02:53.2]}
2... c5 {[%clk 0:02:56.6]} 3. g3 {[%clk 0:02:42]} 3... Nc6 {[%clk 0:02:49.9]} 4.
Bg2 {[%clk 0:02:41.5]} 4... Bg7 {[%clk 0:02:49.7]} 5. O-O {[%clk 0:02:42]} 5...
e5 {[%clk 0:02:49.8]} 6. Nc3 {[%clk 0:02:40.9]} 6... Nge7 {[%clk 0:02:49.7]} 7.
Ne1 {[%clk 0:02:34.3]} 7... d6 {[%clk 0:02:49.4]} 8. Nc2 {[%clk 0:02:34]} 8...
Be6 {[%clk 0:02:50.1]} 9. Ne3 {[%clk 0:02:33.9]} 9... O-O {[%clk 0:02:51]} 10.
a3 {[%clk 0:02:32.1]} 10... Rb8 {[%clk 0:02:51.3]} 11. Rb1 {[%clk 0:02:30]}
11... a5 {[%clk 0:02:50.7]} 12. Ned5 {[%clk 0:02:23.8]} 12... Qd7 {[%clk
0:02:51.1]} 13. d3 {[%clk 0:02:17.8]} 13... Bh3 {[%clk 0:02:49.6]} 14. Qa4
{[%clk 0:02:08.9]} 14... Bxg2 {[%clk 0:02:48.8]} 15. Kxg2 {[%clk 0:02:09.8]}
15... Rfd8 {[%clk 0:02:43.1]} 16. Bg5 {[%clk 0:02:04.7]} 16... h6 {[%clk
0:02:32.5]} 17. Bxh6 {[%clk 0:01:55.5]} 17... Nxd5 {[%clk 0:02:32.4]} 18. Nxd5
{[%clk 0:01:53.3]} 18... b5 {[%clk 0:02:25.6]} 19. cxb5 {[%clk 0:01:49.4]} 19...
Qe6 {[%clk 0:02:26.1]} 20. Nc7 {[%clk 0:01:34]} 20... Qe7 {[%clk 0:02:20.5]} 21.
Bxg7 {[%clk 0:01:28.9]} 21... Kxg7 {[%clk 0:02:15.4]} 22. Nd5 {[%clk 0:01:25.7]}
22... Qe6 {[%clk 0:02:11.9]} 23. e4 {[%clk 0:01:06.4]} 23... Nd4 {[%clk
0:02:10.8]} 24. b6 {[%clk 0:01:06.5]} 24... Rdc8 {[%clk 0:01:56.6]} 25. Qxa5
{[%clk 0:01:00.6]} 25... c4 {[%clk 0:01:56]} 26. dxc4 {[%clk 0:00:47.2]} 26...
Rxc4 {[%clk 0:01:56.9]} 27. Rfc1 {[%clk 0:00:47.1]} 27... Nb3 {[%clk 0:01:52.8]}
28. Qa7 {[%clk 0:00:46.8]} 28... Nxc1 {[%clk 0:01:41.8]} 29. Qxb8 {[%clk
0:00:45.6]} 29... Rxe4 {[%clk 0:01:36.6]} 30. Nc7 {[%clk 0:00:36.4]} 30... Qc4
{[%clk 0:01:34.4]} 31. Ne8+ {[%clk 0:00:35.2]} 31... Kh7 {[%clk 0:01:22.2]} 32.
Nxd6 {[%clk 0:00:20]} 32... Qd5 {[%clk 0:01:22.3]} 33. Nxe4 {[%clk 0:00:15]}
33... Qxe4+ {[%clk 0:01:23.2]} 34. f3 {[%clk 0:00:11]} 34... Qc2+ {[%clk
0:01:21.1]} 35. Kh3 {[%clk 0:00:10.2]} 35... Qf5+ {[%clk 0:01:21.2]} 36. Kg2
{[%clk 0:00:09.4]} 36... Qc2+ {[%clk 0:01:19.7]} 37. Kh3 {[%clk 0:00:06.1]}
37... Qxb1 {[%clk 0:01:20.5]} 38. Qxe5 {[%clk 0:00:05.7]} 38... Nd3 {[%clk
0:01:20.5]} 39. Qf6 {[%clk 0:00:04.2]} 39... Qf1+ {[%clk 0:01:12]} 40. Kh4
{[%clk 0:00:04.7]} 40... Qe2 {[%clk 0:01:06.8]} 41. Qxf7+ {[%clk 0:00:04.8]}
41... Kh6 {[%clk 0:01:06.1]} 42. Qf8+ {[%clk 0:00:05.2]} 42... Kh7 {[%clk
0:01:06.5]} 43. Qf7+ {[%clk 0:00:05.9]} 43... Kh6 {[%clk 0:01:07]} 44. h3 {[%clk
0:00:03.4]} 44... Ne5 {[%clk 0:01:06.4]} 45. Qf8+ {[%clk 0:00:02.8]} 45... Kh7
{[%clk 0:01:07]} 46. Qe7+ {[%clk 0:00:03.3]} 46... Kg8 {[%clk 0:01:06.7]} 47.
Qe6+ {[%clk 0:00:02.7]} 47... Kh7 {[%clk 0:01:06]} 48. Qe7+ {[%clk 0:00:02.3]}
48... Kg8 {[%clk 0:01:05.5]} 49. Qe6+ {[%clk 0:00:02.7]} 49... Kg7 {[%clk
0:01:04.9]} 50. Qe7+ {[%clk 0:00:03]} 50... Kg8 {[%clk 0:01:05.4]} 1/2-1/2

[Event "Late-Titled-Tuesday-Blitz-March-12-2024"]
[Site "Chess.com"]
[Date "2024.03.12"]
[Round "3"]
[White "Polish_fighter3000"]
[Black "rezamahdavi2008"]
[Result "1-0"]
[WhiteElo "3136"]
[BlackElo "2860"]
[TimeControl "180+1"]
[EndTime "14:26:56 PDT"]
[Termination "Polish_fighter3000 won by resignation"]

1. d4 {[%clk 0:03:00.9]} 1... Nf6 {[%clk 0:02:57.1]} 2. c4 {[%clk 0:03:01.5]}
2... e6 {[%clk 0:02:57.4]} 3. Nc3 {[%clk 0:03:01.9]} 3... Bb4 {[%clk 0:02:56]}
4. Qc2 {[%clk 0:03:02.5]} 4... b6 {[%clk 0:02:54.3]} 5. a3 {[%clk 0:02:56.2]}
5... Bxc3+ {[%clk 0:02:51.3]} 6. Qxc3 {[%clk 0:02:57.1]} 6... Bb7 {[%clk
0:02:51.9]} 7. f3 {[%clk 0:02:53.6]} 7... d5 {[%clk 0:02:50.2]} 8. Bg5 {[%clk
0:02:53.2]} 8... O-O {[%clk 0:02:48.1]} 9. cxd5 {[%clk 0:02:49]} 9... exd5
{[%clk 0:02:49]} 10. e3 {[%clk 0:02:47.4]} 10... Re8 {[%clk 0:02:47.7]} 11. Bb5
{[%clk 0:02:41.4]} 11... c6 {[%clk 0:02:38.7]} 12. Ba4 {[%clk 0:02:41.9]} 12...
h6 {[%clk 0:02:37.5]} 13. Bh4 {[%clk 0:02:40.8]} 13... Nbd7 {[%clk 0:02:35.3]}
14. Ne2 {[%clk 0:02:37.6]} 14... Ba6 {[%clk 0:02:07.3]} 15. Bf2 {[%clk
0:02:07.9]} 15... c5 {[%clk 0:01:48.4]} 16. b4 {[%clk 0:01:42.3]} 16... Bc4
{[%clk 0:01:22.2]} 17. Bd1 {[%clk 0:01:33.5]} 17... cxd4 {[%clk 0:01:16.5]} 18.
Qxd4 {[%clk 0:01:30.5]} 18... Rc8 {[%clk 0:00:56]} 19. O-O {[%clk 0:01:29.8]}
19... Ba6 {[%clk 0:00:55.5]} 20. Ra2 {[%clk 0:01:19.7]} 20... Ne5 {[%clk
0:00:51.5]} 21. Ba4 {[%clk 0:01:19.1]} 21... Re6 {[%clk 0:00:41.6]} 22. Rd1
{[%clk 0:01:17.5]} 22... Re7 {[%clk 0:00:22.3]} 23. Nf4 {[%clk 0:01:09.9]} 23...
Bc4 {[%clk 0:00:18]} 24. Rad2 {[%clk 0:01:08.9]} 24... Qc7 {[%clk 0:00:13.4]}
25. Bg3 {[%clk 0:00:54.4]} 25... Qb7 {[%clk 0:00:13]} 26. Qa1 {[%clk 0:00:48.9]}
26... b5 {[%clk 0:00:11.3]} 27. Bc2 {[%clk 0:00:48.8]} 27... Rce8 {[%clk
0:00:11.2]} 28. Bf2 {[%clk 0:00:40.3]} 28... g5 {[%clk 0:00:10.6]} 29. Ne2
{[%clk 0:00:38.1]} 29... g4 {[%clk 0:00:10.6]} 30. f4 {[%clk 0:00:32.9]} 30...
Ned7 {[%clk 0:00:11.2]} 31. Ng3 {[%clk 0:00:26.6]} 31... Ne4 {[%clk 0:00:07.2]}
32. Nf5 {[%clk 0:00:25.1]} 32... Ndf6 {[%clk 0:00:03.1]} 33. Bxe4 {[%clk
0:00:24.4]} 1-0

[Event "Late-Titled-Tuesday-Blitz-March-12-2024"]
[Site "Chess.com"]
[Date "2024.03.12"]
[Round "3"]
[White "AccioChess"]
[Black "JaackCamel"]
[Result "1-0"]
[WhiteElo "2430"]
[BlackElo "2200"]
[TimeControl "180+1"]
[EndTime "14:26:56 PDT"]
[Termination "AccioChess won by resignation"]

1. e4 {[%clk 0:02:59.6]} 1... e6 {[%clk 0:02:59.6]} 2. d4 {[%clk 0:02:56.8]}
2... d5 {[%clk 0:02:59.5]} 3. Nc3 {[%clk 0:02:56.9]} 3... Bb4 {[%clk 0:02:58.1]}
4. e5 {[%clk 0:02:56.5]} 4... Ne7 {[%clk 0:02:57.7]} 5. a3 {[%clk 0:02:56.9]}
5... Bxc3+ {[%clk 0:02:57.5]} 6. bxc3 {[%clk 0:02:57.8]} 6... b6 {[%clk
0:02:57.6]} 7. a4 {[%clk 0:02:55.1]} 7... Ba6 {[%clk 0:02:56.9]} 8. Bxa6 {[%clk
0:02:54]} 8... Nxa6 {[%clk 0:02:56.8]} 9. Qg4 {[%clk 0:02:53.2]} 9... Ng6 {[%clk
0:02:55.1]} 10. Nf3 {[%clk 0:02:52.2]} 10... Nb8 {[%clk 0:02:51.4]} 11. h4
{[%clk 0:02:51.3]} 11... h5 {[%clk 0:02:50.7]} 12. Qg3 {[%clk 0:02:51.4]} 12...
Nc6 {[%clk 0:02:44.6]} 13. Ng5 {[%clk 0:02:48.6]} 13... Qd7 {[%clk 0:02:42.3]}
14. Qf3 {[%clk 0:02:46.6]} 14... Na5 {[%clk 0:02:32.7]} 15. g3 {[%clk
0:02:42.6]} 15... Nc4 {[%clk 0:02:31.7]} 16. a5 {[%clk 0:02:42]} 16... Nxa5
{[%clk 0:02:23.5]} 17. Kf1 {[%clk 0:02:33.4]} 17... Nc4 {[%clk 0:02:22.7]} 18.
Kg2 {[%clk 0:02:33.3]} 18... a5 {[%clk 0:02:22.6]} 19. Ba3 {[%clk 0:01:48.4]}
19... c6 {[%clk 0:02:13.7]} 20. Rhb1 {[%clk 0:01:44.5]} 20... Ra7 {[%clk
0:02:13.2]} 21. Bc5 {[%clk 0:01:29.2]} 21... Nd2 {[%clk 0:02:08.7]} 22. Rxb6
{[%clk 0:01:22.4]} 22... Nxf3 {[%clk 0:01:57.8]} 23. Rb8+ {[%clk 0:01:22.2]}
23... Qd8 {[%clk 0:01:57.6]} 24. Rxd8+ {[%clk 0:01:21.4]} 24... Kxd8 {[%clk
0:01:57.4]} 25. Bxa7 {[%clk 0:01:21.9]} 25... Nxg5 {[%clk 0:01:54.9]} 26. hxg5
{[%clk 0:01:22.8]} 26... Kc7 {[%clk 0:01:41.5]} 27. Rxa5 {[%clk 0:01:21.5]}
27... Ra8 {[%clk 0:01:41]} 28. Bb6+ {[%clk 0:01:11.8]} 28... Kb7 {[%clk
0:01:40.8]} 29. Rxa8 {[%clk 0:01:11.6]} 29... Kxa8 {[%clk 0:01:40.8]} 30. Bc5
{[%clk 0:01:09.5]} 30... Kb7 {[%clk 0:01:18.4]} 31. f4 {[%clk 0:01:09.2]} 31...
Ka6 {[%clk 0:01:12.3]} 32. Kf3 {[%clk 0:01:09.3]} 32... Kb5 {[%clk 0:01:08]} 33.
g4 {[%clk 0:01:09.6]} 33... hxg4+ {[%clk 0:00:54]} 34. Kxg4 {[%clk 0:01:10.5]}
34... Kc4 {[%clk 0:00:51.8]} 35. Bb4 {[%clk 0:01:04.4]} 35... Kb5 {[%clk
0:00:22.9]} 36. f5 {[%clk 0:01:04]} 36... exf5+ {[%clk 0:00:22.8]} 37. Kxf5
{[%clk 0:01:04.9]} 37... Nh4+ {[%clk 0:00:22.9]} 38. Kg4 {[%clk 0:01:05]} 38...
Ng6 {[%clk 0:00:22.7]} 39. Ba3 {[%clk 0:00:58.1]} 39... Kb6 {[%clk 0:00:20.9]}
40. Bd6 {[%clk 0:00:50.8]} 40... Kb7 {[%clk 0:00:20.9]} 41. e6 {[%clk
0:00:50.4]} 41... fxe6 {[%clk 0:00:19.9]} 42. Kh5 {[%clk 0:00:50.6]} 42... Nh8
{[%clk 0:00:17.4]} 43. g6 {[%clk 0:00:50.6]} 43... Kc8 {[%clk 0:00:16.7]} 44.
Be5 {[%clk 0:00:50.8]} 44... Kd7 {[%clk 0:00:13.9]} 45. Bxg7 {[%clk 0:00:50.8]}
45... Nxg6 {[%clk 0:00:13.5]} 46. Kxg6 {[%clk 0:00:51.7]} 46... c5 {[%clk
0:00:12.3]} 47. Be5 {[%clk 0:00:49.8]} 47... cxd4 {[%clk 0:00:12]} 48. cxd4
{[%clk 0:00:50.1]} 48... Kc6 {[%clk 0:00:12.3]} 49. Kf7 {[%clk 0:00:50.1]} 49...
Kd7 {[%clk 0:00:12.7]} 50. Kf6 {[%clk 0:00:50.3]} 50... Kc6 {[%clk 0:00:12.6]}
51. Kxe6 {[%clk 0:00:51.2]} 1-0

[Event "Late-Titled-Tuesday-Blitz-March-12-2024"]
[Site "Chess.com"]
[Date "2024.03.12"]
[Round "3"]
[White "Yushko_Olga"]
[Black "blank0923"]
[Result "1-0"]
[WhiteElo "2197"]
[BlackElo "2599"]
[TimeControl "180+1"]
[EndTime "14:26:58 PDT"]
[Termination "Yushko_Olga won on time"]

1. d4 {[%clk 0:03:00]} 1... f5 {[%clk 0:02:59.4]} 2. g3 {[%clk 0:02:54.6]} 2...
Nf6 {[%clk 0:02:59.6]} 3. Bg2 {[%clk 0:02:55.4]} 3... g6 {[%clk 0:03:00.1]} 4.
c4 {[%clk 0:02:53.9]} 4... Bg7 {[%clk 0:03:00.7]} 5. Nc3 {[%clk 0:02:54.3]} 5...
O-O {[%clk 0:03:01.5]} 6. Nh3 {[%clk 0:02:50.4]} 6... d6 {[%clk 0:03:01.5]} 7.
O-O {[%clk 0:02:51]} 7... e5 {[%clk 0:03:00]} 8. e4 {[%clk 0:02:47.6]} 8... exd4
{[%clk 0:02:58.6]} 9. Qxd4 {[%clk 0:02:44.7]} 9... Nc6 {[%clk 0:02:31]} 10. Qd3
{[%clk 0:02:29.1]} 10... Ne5 {[%clk 0:02:20.9]} 11. Qe2 {[%clk 0:02:28.5]} 11...
fxe4 {[%clk 0:01:56]} 12. Nxe4 {[%clk 0:02:29.4]} 12... Bg4 {[%clk 0:01:44.7]}
13. Nxf6+ {[%clk 0:02:19.9]} 13... Qxf6 {[%clk 0:01:44.7]} 14. Qe4 {[%clk
0:02:16.7]} 14... Rae8 {[%clk 0:01:02]} 15. Qxb7 {[%clk 0:02:09.2]} 15... Be2
{[%clk 0:00:57.1]} 16. Re1 {[%clk 0:01:51.6]} 16... Nf3+ {[%clk 0:00:44.7]} 17.
Kh1 {[%clk 0:01:25.1]} 17... Nxe1 {[%clk 0:00:43]} 18. Bg5 {[%clk 0:01:24.8]}
18... Qxb2 {[%clk 0:00:21.9]} 19. Qxb2 {[%clk 0:01:04.9]} 19... Bxb2 {[%clk
0:00:22.8]} 20. Rxe1 {[%clk 0:01:05.2]} 20... Bxc4 {[%clk 0:00:19.9]} 21. Rb1
{[%clk 0:01:03.7]} 21... Bc3 {[%clk 0:00:19.9]} 22. Bh6 {[%clk 0:00:58.3]} 22...
Rf5 {[%clk 0:00:14.5]} 23. Be3 {[%clk 0:00:54.8]} 23... Ba5 {[%clk 0:00:07.2]}
24. Nf4 {[%clk 0:00:52.5]} 24... Bb6 {[%clk 0:00:06]} 25. Bc6 {[%clk 0:00:38.9]}
25... Re7 {[%clk 0:00:02.4]} 26. g4 {[%clk 0:00:31.7]} 26... Ra5 {[%clk
0:00:01.7]} 27. Bd2 {[%clk 0:00:29.9]} 27... Rxa2 {[%clk 0:00:01.6]} 28. Bc3
{[%clk 0:00:27.1]} 28... Rxf2 {[%clk 0:00:01.6]} 29. Nh3 {[%clk 0:00:24.3]}
29... Rf1+ {[%clk 0:00:01.7]} 30. Rxf1 {[%clk 0:00:23.8]} 30... Bxf1 {[%clk
0:00:02.6]} 31. Nf4 {[%clk 0:00:23.8]} 1-0

[Event "Late-Titled-Tuesday-Blitz-March-12-2024"]
[Site "Chess.com"]
[Date "2024.03.12"]
[Round "3"]
[White "GHANDEEVAM2003"]
[Black "carokannlover213"]
[Result "1-0"]
[WhiteElo "3095"]
[BlackElo "2818"]
[TimeControl "180+1"]
[EndTime "14:27:03 PDT"]
[Termination "GHANDEEVAM2003 won on time"]

1. h3 {[%clk 0:03:00.9]} 1... c5 {[%clk 0:02:59.3]} 2. b3 {[%clk 0:02:59.1]}
2... a6 {[%clk 0:02:58.2]} 3. Bb2 {[%clk 0:02:58.5]} 3... Nc6 {[%clk 0:02:56.8]}
4. e3 {[%clk 0:02:56.3]} 4... e5 {[%clk 0:02:56.6]} 5. c4 {[%clk 0:02:55.6]}
5... Nf6 {[%clk 0:02:55.9]} 6. Nc3 {[%clk 0:02:54.6]} 6... Be7 {[%clk
0:02:54.9]} 7. g3 {[%clk 0:02:54.8]} 7... d5 {[%clk 0:02:54]} 8. Bg2 {[%clk
0:02:51.1]} 8... Be6 {[%clk 0:02:50.6]} 9. cxd5 {[%clk 0:02:44.4]} 9... Nxd5
{[%clk 0:02:51.5]} 10. Nxd5 {[%clk 0:02:41.1]} 10... Bxd5 {[%clk 0:02:49.5]} 11.
Nf3 {[%clk 0:02:41.7]} 11... O-O {[%clk 0:02:48.2]} 12. O-O {[%clk 0:02:41]}
12... f6 {[%clk 0:02:28.9]} 13. Rc1 {[%clk 0:02:35.1]} 13... Rc8 {[%clk
0:02:28.1]} 14. a3 {[%clk 0:02:34.4]} 14... Kh8 {[%clk 0:02:26.9]} 15. Qc2
{[%clk 0:02:32.6]} 15... Qb6 {[%clk 0:02:22.2]} 16. Nxe5 {[%clk 0:02:24.5]}
16... Bxb3 {[%clk 0:02:01.1]} 17. Nd7 {[%clk 0:02:24.5]} 17... Qb5 {[%clk
0:02:00.6]} 18. Qc3 {[%clk 0:02:23.6]} 18... Rfd8 {[%clk 0:01:36.7]} 19. Nxc5
{[%clk 0:02:23.7]} 19... Bxc5 {[%clk 0:01:31.5]} 20. Qxc5 {[%clk 0:02:24.6]}
20... Rxd2 {[%clk 0:01:30.4]} 21. Qxb5 {[%clk 0:01:54.1]} 21... axb5 {[%clk
0:01:31.3]} 22. Bc3 {[%clk 0:01:53.8]} 22... Rdd8 {[%clk 0:01:24.3]} 23. Rb1
{[%clk 0:01:51.8]} 23... Bc4 {[%clk 0:01:22.9]} 24. Rfd1 {[%clk 0:01:51.5]}
24... Rxd1+ {[%clk 0:01:17.5]} 25. Rxd1 {[%clk 0:01:52.4]} 25... Rd8 {[%clk
0:01:18.4]} 26. Rxd8+ {[%clk 0:01:51]} 26... Nxd8 {[%clk 0:01:19.3]} 27. f4
{[%clk 0:01:49.1]} 27... Nc6 {[%clk 0:01:17.4]} 28. Kf2 {[%clk 0:01:48.1]} 28...
Kg8 {[%clk 0:01:17.3]} 29. g4 {[%clk 0:01:46.6]} 29... Kf7 {[%clk 0:01:16.1]}
30. h4 {[%clk 0:01:46.6]} 30... g6 {[%clk 0:01:14.8]} 31. e4 {[%clk 0:01:42.4]}
31... Ke6 {[%clk 0:01:12.7]} 32. g5 {[%clk 0:01:41.5]} 32... f5 {[%clk
0:01:08.1]} 33. exf5+ {[%clk 0:01:36.7]} 33... Kxf5 {[%clk 0:01:00.5]} 34. Ke3
{[%clk 0:01:37.2]} 34... Ke6 {[%clk 0:01:00.2]} 35. Bh3+ {[%clk 0:01:34.3]}
35... Kf7 {[%clk 0:00:59.6]} 36. f5 {[%clk 0:01:30.7]} 36... Ne7 {[%clk
0:00:50.2]} 37. f6 {[%clk 0:01:28.7]} 37... Nf5+ {[%clk 0:00:44.6]} 38. Bxf5
{[%clk 0:01:23.3]} 38... gxf5 {[%clk 0:00:44.8]} 39. h5 {[%clk 0:01:24.2]} 39...
f4+ {[%clk 0:00:14.9]} 40. Kxf4 {[%clk 0:01:24]} 40... Bd3 {[%clk 0:00:14.7]}
41. Ke5 {[%clk 0:01:15.3]} 41... Bc2 {[%clk 0:00:08.8]} 42. Kd6 {[%clk 0:01:11]}
42... Bd3 {[%clk 0:00:08.3]} 43. Kc7 {[%clk 0:01:10.6]} 43... Kg8 {[%clk
0:00:08.7]} 44. Kxb7 {[%clk 0:01:07.2]} 44... Be2 {[%clk 0:00:08.7]} 45. g6
{[%clk 0:01:07.1]} 45... Bf3+ {[%clk 0:00:04.4]} 46. Kb6 {[%clk 0:01:05.9]}
46... Bxh5 {[%clk 0:00:01.4]} 47. f7+ {[%clk 0:01:06]} 1-0

[Event "Late-Titled-Tuesday-Blitz-March-12-2024"]
[Site "Chess.com"]
[Date "2024.03.12"]
[Round "3"]
[White "GMBenjaminBok"]
[Black "Rodalquilar"]
[Result "1-0"]
[WhiteElo "3038"]
[BlackElo "2789"]
[TimeControl "180+1"]
[EndTime "14:27:07 PDT"]
[Termination "GMBenjaminBok won by checkmate"]

1. c4 {[%clk 0:03:00.9]} 1... e6 {[%clk 0:02:59.9]} 2. g3 {[%clk 0:03:01.2]}
2... d5 {[%clk 0:02:59.6]} 3. Bg2 {[%clk 0:03:01.9]} 3... Nf6 {[%clk 0:02:59.8]}
4. Nf3 {[%clk 0:03:02.3]} 4... Be7 {[%clk 0:03:00.3]} 5. d4 {[%clk 0:03:02.3]}
5... O-O {[%clk 0:02:59.8]} 6. Nc3 {[%clk 0:03:02.9]} 6... dxc4 {[%clk 0:02:59]}
7. Ne5 {[%clk 0:03:03.4]} 7... Qd6 {[%clk 0:02:59.1]} 8. O-O {[%clk 0:02:58.2]}
8... Qa6 {[%clk 0:02:50.6]} 9. a4 {[%clk 0:02:58.4]} 9... Bd7 {[%clk 0:02:39.2]}
10. Bf4 {[%clk 0:02:57.7]} 10... Bc6 {[%clk 0:02:37.2]} 11. e4 {[%clk 0:01:47]}
11... Nbd7 {[%clk 0:02:36.8]} 12. d5 {[%clk 0:01:11.5]} 12... Nxe5 {[%clk
0:02:26.9]} 13. Bxe5 {[%clk 0:01:11.4]} 13... exd5 {[%clk 0:02:11.4]} 14. exd5
{[%clk 0:01:12.3]} 14... Bd7 {[%clk 0:02:05.4]} 15. Bxc7 {[%clk 0:01:00.3]}
15... Ne8 {[%clk 0:01:38.2]} 16. Bf4 {[%clk 0:00:38.7]} 16... Bd6 {[%clk
0:01:38.2]} 17. Qd4 {[%clk 0:00:36.5]} 17... Rc8 {[%clk 0:01:25.7]} 18. Rfe1
{[%clk 0:00:32.9]} 18... Bxf4 {[%clk 0:01:04.8]} 19. Qxf4 {[%clk 0:00:33.8]}
19... Qb6 {[%clk 0:00:57.1]} 20. Ne4 {[%clk 0:00:17.3]} 20... Qxb2 {[%clk
0:00:50.3]} 21. Rab1 {[%clk 0:00:17.8]} 21... Qd4 {[%clk 0:00:41.9]} 22. Red1
{[%clk 0:00:13.7]} 22... Qxd1+ {[%clk 0:00:31.6]} 23. Rxd1 {[%clk 0:00:13.4]}
23... Bxa4 {[%clk 0:00:32.5]} 24. Ra1 {[%clk 0:00:11.9]} 24... Bd7 {[%clk
0:00:19.3]} 25. Nc3 {[%clk 0:00:11.7]} 25... a6 {[%clk 0:00:17.3]} 26. d6 {[%clk
0:00:12.3]} 26... b5 {[%clk 0:00:17.1]} 27. Rxa6 {[%clk 0:00:10.9]} 27... b4
{[%clk 0:00:17.1]} 28. Nd5 {[%clk 0:00:11.6]} 28... c3 {[%clk 0:00:16.7]} 29.
Ne7+ {[%clk 0:00:11.3]} 29... Kh8 {[%clk 0:00:17]} 30. Nxc8 {[%clk 0:00:12.2]}
30... c2 {[%clk 0:00:17.5]} 31. Rb6 {[%clk 0:00:08.6]} 31... Nxd6 {[%clk
0:00:14.4]} 32. Nxd6 {[%clk 0:00:07.1]} 32... Ra8 {[%clk 0:00:10.6]} 33. Bxa8
{[%clk 0:00:06.3]} 33... b3 {[%clk 0:00:10.6]} 34. Rb8+ {[%clk 0:00:05.4]} 34...
Be8 {[%clk 0:00:10.6]} 35. Rxe8# {[%clk 0:00:05.1]} 1-0

[Event "Late-Titled-Tuesday-Blitz-March-12-2024"]
[Site "Chess.com"]
[Date "2024.03.12"]
[Round "3"]
[White "janhelmer03"]
[Black "randy296"]
[Result "1-0"]
[WhiteElo "2397"]
[BlackElo "2075"]
[TimeControl "180+1"]
[EndTime "14:27:10 PDT"]
[Termination "janhelmer03 won by resignation"]

1. Nf3 {[%clk 0:03:00.9]} 1... c5 {[%clk 0:02:57]} 2. b3 {[%clk 0:02:55.3]} 2...
Nc6 {[%clk 0:02:56.3]} 3. Bb2 {[%clk 0:02:55.8]} 3... Nf6 {[%clk 0:02:55]} 4. g3
{[%clk 0:02:54.3]} 4... g6 {[%clk 0:02:49.5]} 5. Bg2 {[%clk 0:02:45.1]} 5... Bg7
{[%clk 0:02:48.9]} 6. O-O {[%clk 0:02:45.5]} 6... O-O {[%clk 0:02:48.6]} 7. c4
{[%clk 0:02:42.9]} 7... d6 {[%clk 0:02:48.6]} 8. d4 {[%clk 0:02:35.3]} 8... Bf5
{[%clk 0:02:39.4]} 9. d5 {[%clk 0:02:16.1]} 9... Nb4 {[%clk 0:02:31.1]} 10. Nbd2
{[%clk 0:02:00.3]} 10... a5 {[%clk 0:02:15.2]} 11. a3 {[%clk 0:01:53.9]} 11...
Na6 {[%clk 0:02:10.2]} 12. Nh4 {[%clk 0:01:30.9]} 12... Bd7 {[%clk 0:02:06]} 13.
e4 {[%clk 0:01:23.3]} 13... b5 {[%clk 0:02:05.5]} 14. f4 {[%clk 0:01:12.8]}
14... bxc4 {[%clk 0:02:01.3]} 15. bxc4 {[%clk 0:00:52]} 15... Rb8 {[%clk
0:02:01.1]} 16. Bc3 {[%clk 0:00:51.3]} 16... Ng4 {[%clk 0:01:32.8]} 17. Bxg7
{[%clk 0:00:44.7]} 17... Kxg7 {[%clk 0:01:32.7]} 18. Qf3 {[%clk 0:00:37.7]}
18... Rb2 {[%clk 0:01:29.6]} 19. Qc3+ {[%clk 0:00:32]} 19... e5 {[%clk
0:01:22.1]} 20. Qxb2 {[%clk 0:00:13.9]} 20... Ne3 {[%clk 0:01:22.1]} 21. Rfe1
{[%clk 0:00:12.4]} 21... Ng4 {[%clk 0:01:12.9]} 22. h3 {[%clk 0:00:11.7]} 22...
g5 {[%clk 0:01:12.1]} 23. hxg4 {[%clk 0:00:09.7]} 23... gxh4 {[%clk 0:01:12.2]}
24. fxe5 {[%clk 0:00:10.6]} 24... hxg3 {[%clk 0:01:07.6]} 25. e6+ {[%clk
0:00:10.6]} 25... Kg8 {[%clk 0:01:04.7]} 26. exd7 {[%clk 0:00:09.8]} 26... Qg5
{[%clk 0:00:56.7]} 27. Nf3 {[%clk 0:00:09.4]} 27... Qf4 {[%clk 0:00:54.6]} 28.
Qd2 {[%clk 0:00:08.8]} 28... Qxg4 {[%clk 0:00:52.8]} 29. Qg5+ {[%clk 0:00:09.1]}
29... Qxg5 {[%clk 0:00:53.1]} 30. Nxg5 {[%clk 0:00:10]} 30... Rb8 {[%clk
0:00:52.6]} 31. Rab1 {[%clk 0:00:09.5]} 31... Rd8 {[%clk 0:00:52.6]} 32. Bh3
{[%clk 0:00:09.6]} 32... Nb8 {[%clk 0:00:49.7]} 33. Rxb8 {[%clk 0:00:08.3]}
33... Rxb8 {[%clk 0:00:49.4]} 34. e5 {[%clk 0:00:09.2]} 34... h5 {[%clk
0:00:48.6]} 35. exd6 {[%clk 0:00:08.8]} 35... h4 {[%clk 0:00:48.9]} 36. Re8+
{[%clk 0:00:09.4]} 36... Kg7 {[%clk 0:00:47.9]} 37. Rxb8 {[%clk 0:00:08.9]}
37... a4 {[%clk 0:00:47.7]} 38. d8=Q {[%clk 0:00:09.8]} 38... g2 {[%clk
0:00:46.5]} 39. Qh8+ {[%clk 0:00:10.2]} 39... Kg6 {[%clk 0:00:46.3]} 40. Qh7+
{[%clk 0:00:11.1]} 40... Kxg5 {[%clk 0:00:46]} 41. Rg8+ {[%clk 0:00:10.7]} 41...
Kf4 {[%clk 0:00:46.2]} 42. Qf5+ {[%clk 0:00:09.8]} 42... Ke3 {[%clk 0:00:44.6]}
43. Re8+ {[%clk 0:00:10.7]} 43... Kd4 {[%clk 0:00:41.8]} 44. Qf4+ {[%clk
0:00:11.1]} 44... Kc3 {[%clk 0:00:41.1]} 45. Re3+ {[%clk 0:00:12]} 45... Kb2
{[%clk 0:00:41]} 46. Qf2+ {[%clk 0:00:12.9]} 1-0